[Event "Paul Kerese Mälestusfestival 2022 Välkturniir"]
[Site "Paul Kerese Mälestusfestival 2022 Kiirturniir"]
[Date "????.??.??"]
[Round "11.6"]
[White "Teelem, Lauri"]
[Black "Olde, Margareth"]
[Result "0-1"]
[TimeControl "3 min + 2 sek iga käigu eest"]
[BlackTitle "WIM"]
[WhiteElo "2012"]
[BlackElo "1971"]

1. d4 {[%clk 00:03:02]} {[%emt 00:00:02]} d5 {[%clk 00:03:04]} 2. c4 e6 3. Nc3
{[%emt 00:00:01]} a6 4. cxd5 {[%clk 00:03:01]} {[%emt 00:00:04]} exd5 {[%clk
00:03:08]} 5. Nf3 {[%clk 00:02:59]} {[%emt 00:00:04]} Be7 {[%clk 00:02:41]}
{[%emt 00:00:29]} 6. Bf4 {[%clk 00:02:54]} {[%emt 00:00:06]} Nf6 {[%clk
00:02:41]} {[%emt 00:00:03]} 7. e3 {[%clk 00:02:55]} c5 {[%clk 00:02:40]}
{[%emt 00:00:03]} 8. dxc5 {[%clk 00:02:49]} {[%emt 00:00:08]} Bxc5 {[%clk
00:02:41]} 9. Be2 {[%clk 00:02:45]} {[%emt 00:00:06]} O-O {[%clk 00:02:41]}
{[%emt 00:00:01]} 10. O-O {[%clk 00:02:45]} {[%emt 00:00:02]} Nc6 {[%clk
00:02:39]} {[%emt 00:00:04]} 11. Rc1 {[%clk 00:02:45]} {[%emt 00:00:02]} Be7
{[%clk 00:02:28]} {[%emt 00:00:13]} 12. Nd4 {[%clk 00:02:42]} {[%emt 00:00:05]}
Qb6 {[%clk 00:02:19]} {[%emt 00:00:12]} 13. Nxc6 {[%clk 00:02:37]} {[%emt
00:00:07]} bxc6 {[%clk 00:02:20]} 14. Na4 {[%clk 00:02:37]} {[%emt 00:00:02]}
Qb7 {[%clk 00:02:12]} {[%emt 00:00:10]} 15. Qc2 {[%clk 00:02:32]} {[%emt
00:00:07]} Ne4 {[%clk 00:02:01]} {[%emt 00:00:14]} 16. b3 {[%clk 00:02:20]}
{[%emt 00:00:14]} Bd7 {[%clk 00:01:58]} {[%emt 00:00:06]} 17. Bd3 {[%emt
00:00:12]} f5 {[%clk 00:01:52]} 18. f3 {[%clk 00:02:14]} {[%emt 00:00:05]} Nf6
{[%clk 00:01:29]} {[%emt 00:00:25]} 19. Bxf5 {[%clk 00:02:09]} {[%emt
00:00:07]} Rac8 {[%clk 00:01:14]} {[%emt 00:00:18]} 20. Bxd7 {[%clk 00:02:08]}
{[%emt 00:00:02]} Nxd7 {[%clk 00:01:10]} {[%emt 00:00:06]} 21. Bg3 {[%clk
00:01:54]} {[%emt 00:00:15]} c5 {[%clk 00:01:11]} {[%emt 00:00:02]} 22. Rfd1
{[%clk 00:01:48]} {[%emt 00:00:07]} c4 {[%clk 00:00:50]} {[%emt 00:00:24]} 23.
Qd2 {[%clk 00:01:39]} {[%emt 00:00:10]} cxb3 {[%clk 00:00:42]} {[%emt
00:00:11]} 24. Rxc8 {[%clk 00:01:37]} {[%emt 00:00:04]} Rxc8 {[%clk 00:00:44]}
25. axb3 {[%clk 00:01:20]} {[%emt 00:00:19]} Nf6 {[%clk 00:00:39]} {[%emt
00:00:07]} 26. Bh4 {[%clk 00:01:05]} {[%emt 00:00:15]} Qxb3 {[%clk 00:00:33]}
{[%emt 00:00:10]} 27. Bxf6 {[%clk 00:01:03]} {[%emt 00:00:03]} Bxf6 {[%clk
00:00:36]} {[%emt 00:00:01]} 28. Qxd5+ {[%clk 00:01:05]} {[%emt 00:00:03]} Qxd5
{[%clk 00:00:37]} {[%emt 00:00:01]} 29. Rxd5 {[%clk 00:01:06]} Rc1+ {[%clk
00:00:39]} {[%emt 00:00:01]} 30. Kf2 {[%clk 00:01:05]} {[%emt 00:00:02]} Ra1
{[%clk 00:00:40]} {[%emt 00:00:01]} 31. Ra5 {[%clk 00:00:56]} {[%emt 00:00:11]}
Ra2+ {[%clk 00:00:40]} {[%emt 00:00:02]} 32. Kg3 {[%clk 00:00:53]} {[%emt
00:00:05]} Ra3 {[%clk 00:00:38]} {[%emt 00:00:04]} 33. e4 {[%clk 00:00:49]}
{[%emt 00:00:05]} h5 {[%clk 00:00:32]} {[%emt 00:00:08]} 34. Rxa6 {[%clk
00:00:47]} {[%emt 00:00:04]} Kf7 {[%clk 00:00:27]} {[%emt 00:00:07]} 35. Nc5
{[%clk 00:00:22]} {[%emt 00:00:27]} Rc3 {[%clk 00:00:28]} 36. Nd7 {[%clk
00:00:17]} {[%emt 00:00:07]} Bd4 {[%clk 00:00:28]} {[%emt 00:00:03]} 37. h4
{[%clk 00:00:14]} {[%emt 00:00:05]} Rc2 {[%clk 00:00:27]} {[%emt 00:00:03]} 38.
e5 {[%clk 00:00:12]} {[%emt 00:00:04]} Bf2+ {[%clk 00:00:27]} 39. Kf4 {[%clk
00:00:13]} {[%emt 00:00:01]} Bxh4 {[%clk 00:00:20]} {[%emt 00:00:10]} 40. e6+
{[%clk 00:00:14]} Ke7 {[%clk 00:00:18]} {[%emt 00:00:04]} 41. Ne5 {[%clk
00:00:15]} Rxg2 {[%clk 00:00:16]} {[%emt 00:00:05]} 42. Kf5 {[%clk 00:00:12]}
{[%emt 00:00:05]} Rg5+ {[%clk 00:00:15]} {[%emt 00:00:03]} 43. Ke4 {[%clk
00:00:12]} {[%emt 00:00:01]} Rg1 {[%clk 00:00:14]} {[%emt 00:00:03]} 44. f4
{[%clk 00:00:11]} {[%emt 00:00:03]} Bf6 {[%clk 00:00:12]} {[%emt 00:00:04]} 45.
Ng6+ {[%clk 00:00:11]} {[%emt 00:00:02]} Rxg6 {[%clk 00:00:11]} {[%emt
00:00:03]} 46. Kf5 {[%clk 00:00:10]} {[%emt 00:00:03]} Rg1 {[%clk 00:00:10]}
{[%emt 00:00:03]} 47. Ra7+ {[%clk 00:00:10]} {[%emt 00:00:02]} Ke8 {[%clk
00:00:10]} {[%emt 00:00:02]} 48. Ra8+ {[%clk 00:00:10]} {[%emt 00:00:02]} Bd8
{[%clk 00:00:11]} {[%emt 00:00:01]} 49. Ra7 {[%clk 00:00:04]} {[%emt 00:00:07]}
h4 {[%clk 00:00:12]} {[%emt 00:00:02]} 0-1

[Event "Paul Kerese Mälestusfestival 2022 Välkturniir"]
[Site "Paul Kerese Mälestusfestival 2022 Kiirturniir"]
[Date "????.??.??"]
[Round "11.7"]
[White "Dzjuba, Jegor"]
[Black "Paikens, Reinis"]
[Result "0-1"]
[TimeControl "3 min + 2 sek iga käigu eest"]
[WhiteElo "1356"]
[BlackElo "1678"]

1. d4 {[%clk 00:03:02]} {[%emt 00:00:02]} d5 {[%clk 00:03:04]} 2. Nf3 {[%clk
00:03:02]} {[%emt 00:00:01]} Nf6 {[%clk 00:03:05]} {[%emt 00:00:01]} 3. Bf4
{[%clk 00:03:02]} {[%emt 00:00:02]} c6 {[%clk 00:03:04]} {[%emt 00:00:03]} 4.
e3 {[%clk 00:03:01]} {[%emt 00:00:03]} g6 {[%clk 00:03:05]} {[%emt 00:00:01]} 5.
h3 {[%clk 00:03:01]} {[%emt 00:00:02]} Bg7 {[%clk 00:03:06]} {[%emt 00:00:01]}
6. c3 {[%clk 00:03:00]} {[%emt 00:00:03]} O-O {[%clk 00:03:06]} {[%emt
00:00:02]} 7. Bd3 {[%clk 00:03:00]} {[%emt 00:00:02]} Nbd7 {[%clk 00:03:05]}
{[%emt 00:00:03]} 8. Nbd2 {[%clk 00:03:01]} {[%emt 00:00:02]} Ne8 {[%clk
00:02:58]} {[%emt 00:00:09]} 9. O-O {[%clk 00:02:57]} {[%emt 00:00:06]} Nd6
{[%clk 00:02:58]} {[%emt 00:00:01]} 10. e4 {[%clk 00:02:52]} {[%emt 00:00:07]}
dxe4 {[%clk 00:02:59]} {[%emt 00:00:02]} 11. Nxe4 {[%clk 00:02:51]} {[%emt
00:00:02]} Nxe4 {[%clk 00:02:59]} {[%emt 00:00:02]} 12. Bxe4 {[%clk 00:02:48]}
{[%emt 00:00:04]} Nf6 {[%clk 00:03:00]} 13. Bd3 {[%clk 00:02:47]} {[%emt
00:00:05]} Nd5 {[%clk 00:03:01]} {[%emt 00:00:01]} 14. Bg3 {[%clk 00:02:46]}
{[%emt 00:00:03]} Qb6 {[%clk 00:02:53]} {[%emt 00:00:10]} 15. Qc2 {[%clk
00:02:41]} {[%emt 00:00:07]} e6 {[%clk 00:02:49]} {[%emt 00:00:06]} 16. a4
{[%clk 00:02:37]} {[%emt 00:00:07]} a5 {[%clk 00:02:48]} {[%emt 00:00:03]} 17.
Rfe1 {[%clk 00:02:21]} {[%emt 00:00:17]} Re8 {[%clk 00:02:47]} {[%emt
00:00:03]} 18. h4 {[%clk 00:02:12]} {[%emt 00:00:11]} h5 {[%clk 00:02:47]}
{[%emt 00:00:02]} 19. Bxg6 {[%clk 00:01:33]} {[%emt 00:00:42]} fxg6 {[%clk
00:02:48]} {[%emt 00:00:01]} 20. Qxg6 {[%clk 00:01:33]} {[%emt 00:00:01]} Rf8
{[%clk 00:02:17]} {[%emt 00:00:33]} 21. Be5 {[%clk 00:01:02]} {[%emt 00:00:33]}
Nf6 {[%clk 00:02:10]} {[%emt 00:00:10]} 22. Ng5 {[%clk 00:00:59]} {[%emt
00:00:05]} Qxb2 {[%clk 00:01:41]} {[%emt 00:00:30]} 23. Bd6 {[%clk 00:00:25]}
{[%emt 00:00:37]} Bd7 {[%clk 00:01:42]} 24. Bxf8 {[%clk 00:00:24]} {[%emt
00:00:03]} Rxf8 {[%clk 00:01:43]} {[%emt 00:00:01]} 25. Rab1 {[%clk 00:00:22]}
{[%emt 00:00:04]} Qxc3 {[%clk 00:01:27]} {[%emt 00:00:18]} 26. Nxe6 {[%clk
00:00:13]} {[%emt 00:00:11]} Bxe6 {[%clk 00:01:22]} {[%emt 00:00:07]} 27. Rxe6
{[%clk 00:00:15]} Ng4 {[%clk 00:01:21]} {[%emt 00:00:03]} 28. Re7 {[%clk
00:00:08]} {[%emt 00:00:09]} Qxd4 {[%clk 00:01:14]} {[%emt 00:00:08]} 29. Rf1
{[%clk 00:00:03]} {[%emt 00:00:07]} Qf6 {[%clk 00:01:10]} {[%emt 00:00:07]} 30.
Qxf6 {[%clk 00:00:03]} {[%emt 00:00:03]} Bxf6 {[%clk 00:01:11]} 31. Rxb7 {[%clk
00:00:04]} Bd4 {[%clk 00:01:11]} {[%emt 00:00:01]} 32. Rc7 {[%clk 00:00:03]}
{[%emt 00:00:02]} Nxf2 {[%clk 00:01:09]} {[%emt 00:00:04]} 33. Kh2 {[%clk
00:00:04]} {[%emt 00:00:01]} Ng4+ {[%clk 00:01:11]} 34. Kh3 {[%clk 00:00:03]}
{[%emt 00:00:02]} Rxf1 {[%clk 00:01:11]} {[%emt 00:00:02]} 35. Rxc6 {[%clk
00:00:04]} {[%emt 00:00:01]} Rh1+ {[%clk 00:01:12]} {[%emt 00:00:01]} 36. Kg3
{[%clk 00:00:05]} {[%emt 00:00:02]} Be5+ {[%clk 00:01:11]} {[%emt 00:00:03]} 37.
Kf3 {[%clk 00:00:06]} {[%emt 00:00:01]} Rf1+ {[%clk 00:01:11]} {[%emt
00:00:02]} 38. Ke4 {[%clk 00:00:07]} Rf4+ {[%clk 00:01:09]} {[%emt 00:00:03]}
39. Kd5 {[%clk 00:00:08]} {[%emt 00:00:02]} Rxa4 {[%clk 00:01:10]} {[%emt
00:00:01]} 40. Rg6+ {[%clk 00:00:06]} {[%emt 00:00:04]} Kf7 {[%clk 00:01:09]}
{[%emt 00:00:02]} 41. Rg5 {[%clk 00:00:07]} {[%emt 00:00:01]} Bf6 {[%clk
00:01:05]} {[%emt 00:00:05]} 42. Rxh5 {[%clk 00:00:08]} {[%emt 00:00:01]} Kg6
{[%clk 00:01:02]} {[%emt 00:00:06]} 43. Rg5+ {[%emt 00:00:08]} Bxg5 {[%emt
00:00:01]} 44. hxg5 Kxg5 {[%emt 00:00:01]} 0-1

[Event "Paul Kerese Mälestusfestival 2022 Välkturniir"]
[Site "Paul Kerese Mälestusfestival 2022 Kiirturniir"]
[Date "????.??.??"]
[Round "11.8"]
[White "Petrovskis, Olegs"]
[Black "Kraini, Juri"]
[Result "0-1"]
[TimeControl "3 min + 2 sek iga käigu eest"]
[WhiteElo "1984"]
[BlackElo "1692"]

1. d4 {[%clk 00:03:03]} Nf6 {[%clk 00:03:02]} {[%emt 00:00:02]} 2. Nf3 {[%clk
00:03:05]} e6 {[%clk 00:03:03]} {[%emt 00:00:02]} 3. c4 {[%clk 00:03:06]} Bb4+
{[%clk 00:03:02]} {[%emt 00:00:03]} 4. Bd2 {[%clk 00:03:04]} {[%emt 00:00:04]}
a5 {[%clk 00:03:01]} {[%emt 00:00:03]} 5. e3 {[%clk 00:03:02]} {[%emt
00:00:04]} O-O {[%clk 00:03:01]} {[%emt 00:00:02]} 6. Bd3 {[%clk 00:03:03]}
{[%emt 00:00:02]} d5 {[%clk 00:02:56]} {[%emt 00:00:06]} 7. O-O {[%clk
00:03:02]} {[%emt 00:00:03]} b6 {[%clk 00:02:45]} {[%emt 00:00:13]} 8. cxd5
{[%clk 00:02:59]} {[%emt 00:00:05]} exd5 {[%clk 00:02:45]} {[%emt 00:00:02]} 9.
Qc2 {[%clk 00:02:59]} {[%emt 00:00:03]} Ba6 {[%clk 00:02:39]} {[%emt 00:00:07]}
10. Ne5 {[%clk 00:02:50]} {[%emt 00:00:12]} Bxd3 {[%clk 00:02:38]} {[%emt
00:00:04]} 11. Qxd3 {[%clk 00:02:41]} {[%emt 00:00:11]} Nfd7 {[%clk 00:02:29]}
{[%emt 00:00:11]} 12. Nf3 {[%clk 00:02:34]} {[%emt 00:00:09]} Nf6 {[%clk
00:02:29]} {[%emt 00:00:02]} 13. Rc1 {[%clk 00:02:15]} {[%emt 00:00:21]} Bd6
{[%clk 00:02:29]} {[%emt 00:00:02]} 14. Nc3 {[%clk 00:02:13]} {[%emt 00:00:04]}
c6 {[%clk 00:02:29]} {[%emt 00:00:02]} 15. Ne2 {[%clk 00:02:12]} {[%emt
00:00:02]} Re8 {[%clk 00:02:25]} {[%emt 00:00:06]} 16. Ng3 {[%clk 00:02:13]}
{[%emt 00:00:01]} g6 {[%clk 00:02:25]} {[%emt 00:00:02]} 17. a3 {[%clk
00:02:06]} {[%emt 00:00:09]} Qd7 {[%clk 00:02:18]} {[%emt 00:00:09]} 18. b4
{[%clk 00:02:03]} {[%emt 00:00:05]} axb4 {[%clk 00:02:15]} {[%emt 00:00:06]} 19.
Bxb4 {[%clk 00:02:04]} {[%emt 00:00:01]} Na6 {[%clk 00:02:12]} {[%emt
00:00:05]} 20. Bxd6 {[%clk 00:01:59]} {[%emt 00:00:07]} Qxd6 {[%clk 00:02:13]}
{[%emt 00:00:01]} 21. Rab1 {[%clk 00:01:58]} {[%emt 00:00:03]} Reb8 {[%clk
00:01:51]} {[%emt 00:00:23]} 22. Rb3 {[%clk 00:01:44]} {[%emt 00:00:16]} c5
{[%clk 00:01:50]} {[%emt 00:00:03]} 23. Qc2 {[%clk 00:01:10]} {[%emt 00:00:35]}
c4 {[%clk 00:01:51]} {[%emt 00:00:02]} 24. Rc3 {[%clk 00:01:03]} {[%emt
00:00:09]} Nc7 {[%clk 00:01:52]} {[%emt 00:00:01]} 25. Rb1 {[%clk 00:01:03]}
{[%emt 00:00:02]} b5 {[%clk 00:01:49]} {[%emt 00:00:04]} 26. Qb2 {[%clk
00:00:53]} {[%emt 00:00:09]} Ra4 {[%clk 00:01:50]} {[%emt 00:00:03]} 27. Ne5
{[%clk 00:00:24]} {[%emt 00:00:32]} Rba8 {[%clk 00:01:50]} {[%emt 00:00:02]} 28.
Ra1 {[%clk 00:00:16]} {[%emt 00:00:10]} b4 {[%clk 00:01:46]} {[%emt 00:00:05]}
29. Rcc1 {[%clk 00:00:13]} {[%emt 00:00:04]} b3 {[%clk 00:01:46]} {[%emt
00:00:02]} 30. Ne2 {[%clk 00:00:12]} {[%emt 00:00:03]} Rxa3 {[%emt 00:00:16]}
31. Nc3 Qb4 {[%clk 00:01:24]} {[%emt 00:00:10]} 32. Nc6 {[%clk 00:00:09]}
{[%emt 00:00:07]} Qd6 {[%clk 00:01:09]} {[%emt 00:00:17]} 33. Ne5 {[%clk
00:00:10]} {[%emt 00:00:01]} Rxa1 {[%clk 00:00:56]} {[%emt 00:00:14]} 34. Rxa1
{[%clk 00:00:12]} Rxa1+ {[%clk 00:00:56]} {[%emt 00:00:03]} 35. Qxa1 {[%clk
00:00:13]} Qb4 {[%clk 00:00:53]} {[%emt 00:00:04]} 36. Qb2 {[%clk 00:00:10]}
{[%emt 00:00:05]} Nb5 {[%clk 00:00:51]} {[%emt 00:00:05]} 37. Nxb5 {[%clk
00:00:05]} {[%emt 00:00:07]} Qxb5 {[%clk 00:00:52]} 38. f3 {[%clk 00:00:05]}
{[%emt 00:00:02]} Qb4 {[%clk 00:00:52]} {[%emt 00:00:01]} 39. Qa1 {[%clk
00:00:03]} {[%emt 00:00:04]} b2 {[%clk 00:00:50]} {[%emt 00:00:03]} 40. Qa8+
{[%clk 00:03:02]} {[%emt 00:00:05]} 0-1